bitfinex/quotes_ETHUSD_20241124
["timestamp","ask_amount","ask_price","bid_price","bid_amount"]
[1732441532086,1.19024954,3394.4,3393.3,0.2941]
[1732441532288,1.19024954,3394.4,3393.5,0.2941]
[1732441532522,1.19024954,3394.4,3393.0,0.2941]
[1732441532922,1.1153,3394.4,3393.0,0.2941]
[1732441533225,1.19076641,3394.3,3393.0,0.2941]
[1732441533403,1.19076641,3394.3,3392.6,0.32356932]
[1732441533815,1.1153,3394.3,3392.6,0.32356932]
[1732441534228,1.1153,3394.3,3394.1,0.01619728]
[1732441534537,1.04943288,3395.1,3394.1,0.01619728]
[1732441534538,1.19076641,3394.2,3394.1,0.01619728]
[1732441537733,1.19076641,3394.2,3394.1,3.01619728]
[1732441537933,1.1153,3394.2,3394.1,3.01619728]
[1732441538283,1.19076641,3394.2,3394.1,0.01619728]
[1732441538439,1.19076641,3394.2,3394.1,3.01619728]
[1732441538640,1.19076641,3394.2,3394.1,0.01619728]
[1732441545167,0.07546641,3394.2,3394.1,0.01619728]
[1732441545350,1.1399,3394.4,3394.1,0.01619728]
[1732441545556,0.07567204,3394.3,3394.1,0.01619728]
[1732441545783,0.07567204,3394.3,3394.2,3.0]
[1732441546175,0.07567204,3394.3,3394.1,0.01619728]
[1732441546376,0.07567204,3394.3,3394.2,3.0]
[1732441546577,0.07567204,3394.3,3394.1,0.01619728]
[1732441546781,0.07567204,3394.3,3394.2,3.0]
[1732441547414,0.07567204,3394.3,3394.1,0.01619728]
[1732441551268,1.1399,3394.2,3394.1,0.01619728]
[1732441551705,1.2156697,3394.2,3394.1,0.01619728]
[1732441566436,1.2156697,3394.2,3394.1,0.01619728]
[1732441567338,1.2156697,3394.2,3394.1,3.01619728]
[1732441568340,1.2156697,3394.2,3394.1,0.01619728]
[1732441568543,1.2156697,3394.2,3394.1,3.01619728]
[1732441569620,1.2156697,3394.2,3394.1,0.01619728]
[1732441569946,1.2156697,3394.2,3394.1,3.01619728]
[1732441570242,1.2156697,3394.2,3394.1,0.01619728]
[1732441570451,1.2156697,3394.2,3394.1,3.01619728]
[1732441570948,0.0757697,3394.2,3394.1,3.01619728]
[1732441571156,0.0757697,3394.2,3394.1,0.01619728]
[1732441571313,1.206,3394.5,3394.1,3.01619728]
[1732441571515,0.07318476,3394.2,3394.1,3.01619728]
[1732441571747,1.206,3394.5,3394.1,0.01619728]
[1732441571944,0.07318476,3394.2,3394.1,3.01619728]
[1732441572151,1.206,3394.5,3394.1,0.01619728]
[1732441572359,0.07318476,3394.2,3394.1,3.01619728]
[1732441572510,1.206,3394.5,3394.1,3.01619728]
[1732441572856,1.206,3394.2,3394.1,0.01619728]
[1732441573230,1.206,3394.2,3394.1,3.01619728]
[1732441573416,1.279226,3394.2,3394.1,3.01619728]
[1732441574017,1.279226,3394.2,3394.1,0.01619728]
[1732441574216,1.279226,3394.2,3394.1,3.01619728]
[1732441575448,1.279226,3394.2,3394.1,0.01619728]
[1732441575649,1.279226,3394.2,3394.1,3.01619728]
[1732441577053,1.279226,3394.2,3394.1,0.01619728]
[1732441577251,1.279226,3394.2,3394.1,3.01619728]
[1732441578133,1.279226,3394.2,3394.1,0.01619728]
[1732441578336,1.279226,3394.2,3394.1,3.01619728]
[1732441578760,1.279226,3394.2,3394.1,0.01619728]
[1732441579060,1.279226,3394.2,3394.1,3.01619728]
[1732441580172,1.279226,3394.2,3394.1,0.01619728]
[1732441580781,1.206,3394.2,3394.1,0.01619728]
[1732441581100,1.2791461,3394.2,3394.1,0.01619728]
[1732441590563,0.0731461,3394.2,3394.1,0.01619728]
[1732441590887,1.1579,3394.5,3394.1,0.01619728]
[1732441591087,0.07306878,3394.2,3394.1,0.01619728]
[1732441591245,1.1579,3394.5,3394.1,0.01619728]
[1732441591446,0.07306878,3394.2,3394.1,0.01619728]
[1732441591774,1.87604,3394.5,3394.1,0.01619728]
[1732441591989,0.07306878,3394.2,3394.1,0.01619728]
[1732441592144,1.87604,3394.5,3394.1,0.01619728]
[1732441592575,0.07306878,3394.4,3394.1,0.01619728]
[1732441598213,1.1328,3394.8,3394.2,1.1715]
[1732441598423,0.0730894,3394.7,3394.2,1.1715]
[1732441601776,1.1328,3395.1,3394.2,1.1715]
[1732441601977,0.0731796,3395.0,3394.2,1.1715]
[1732441602919,0.79612756,3395.0,3394.2,1.1715]
[1732441605818,1.1894,3394.9,3394.1,0.01619728]
[1732441606196,0.0731796,3394.8,3394.1,0.01619728]
[1732441608331,0.55,3394.6,3394.1,0.01619728]
[1732441608649,1.1894,3394.4,3394.1,0.01619728]
[1732441608783,1.1894,3394.3,3394.1,0.01619728]
[1732441609230,0.62316413,3394.2,3394.1,0.01619728]
[1732441609400,1.81256413,3394.2,3394.1,0.01619728]
[1732441609588,2.62426176,3394.2,3394.1,0.01619728]
[1732441611005,8.74776176,3394.2,3394.1,0.01619728]
[1732441611258,7.93606413,3394.2,3394.1,0.01619728]
[1732441611887,8.93260633,3394.2,3394.1,0.01619728]
[1732441612531,9.03260633,3394.2,3394.1,0.01619728]
[1732441612734,1.1894,3393.8,3391.7,0.2934]
[1732441612962,1.1894,3393.2,3391.8,1.2181]
[1732441613270,1.1894,3393.0,3391.8,1.2181]
[1732441613583,1.1894,3392.9,3391.8,1.2181]
[1732441613872,0.07260208,3392.8,3391.8,1.2181]
[1732441615069,0.07260208,3392.8,3391.9,1.56494911]
[1732441615246,0.07260208,3392.8,3392.0,1.2181]
[1732441615438,6.0235,3393.0,3392.1,0.2934]
[1732441615639,0.07260208,3392.9,3392.5,1.2181]
[1732441616270,1.1894,3393.2,3392.5,1.2181]
[1732441616489,0.07260208,3392.8,3392.5,1.2181]
[1732441616635,1.96569,3393.2,3392.5,1.2181]
[1732441616830,0.07260208,3393.1,3392.5,1.2181]
[1732441617330,0.07260208,3393.1,3391.6,1.1991]
[1732441617533,1.2051,3392.9,3391.6,1.1991]
[1732441617975,0.07262787,3392.8,3391.6,1.1991]
[1732441621263,1.2051,3392.7,3391.6,1.1991]
[1732441621770,0.07255564,3392.6,3391.6,1.1991]
[1732441624451,1.2051,3392.7,3391.6,1.1991]
[1732441626037,1.2051,3392.7,3391.7,0.2934]
[1732441627542,0.07230797,3392.6,3391.7,0.2934]
[1732441627943,1.2051,3392.7,3391.7,0.2934]
[1732441628491,0.07230797,3392.6,3391.7,0.2934]
[1732441628986,1.2051,3392.7,3391.7,0.2934]
[1732441629368,0.07230797,3392.6,3391.7,0.2934]
[1732441629686,1.2051,3392.7,3391.7,0.2934]
[1732441630324,0.07230797,3392.6,3391.7,0.2934]
[1732441632922,1.1453,3392.5,3391.7,0.2934]
[1732441633103,1.1453,3392.5,3392.2,3.0]
[1732441633422,1.1453,3392.5,3391.4,0.2934]
[1732441633423,0.07229765,3392.4,3391.4,0.2934]
[1732441633718,0.07229765,3392.4,3392.2,3.0]
[1732441635217,1.1453,3392.3,3391.4,0.2934]
[1732441635387,1.1453,3392.3,3392.2,3.0]
[1732441635982,1.1453,3392.3,3391.3,1.1441]
[1732441636198,1.1453,3392.3,3391.4,0.2934]
[1732441636408,1.1453,3392.3,3392.2,3.0]
[1732441637013,1.1453,3392.3,3391.4,0.2934]
[1732441637202,1.1453,3392.3,3392.2,3.0]
[1732441638516,1.1453,3392.3,3391.4,0.2934]
[1732441638880,1.1453,3392.3,3392.0,3.0]
[1732441639083,1.1453,3392.3,3390.9,0.2934]
[1732441639703,0.07210415,3392.2,3390.9,0.2934]
[1732441640022,1.2189,3392.1,3390.9,0.2934]
[1732441640520,0.07210415,3392.0,3390.9,0.2934]
[1732441641089,0.07210415,3392.0,3391.8,3.0]
[1732441641486,1.2189,3392.1,3391.8,3.0]
[1732441642188,1.2189,3392.1,3390.9,0.61076856]
[1732441642627,1.1549,3391.9,3390.9,0.61076856]
[1732441642790,1.1549,3391.9,3390.3,2.94]
[1732441642996,1.1549,3391.7,3390.4,1.1622]
[1732441643622,1.1549,3391.5,3390.4,1.1622]
[1732441643794,1.1549,3391.5,3390.4,1.4556]
[1732441643988,1.1549,3391.3,3390.4,1.4556]
[1732441644588,0.07201381,3391.2,3390.4,1.4556]
[1732441645631,1.1549,3391.3,3390.4,1.4556]
[1732441646039,0.07201381,3391.2,3390.4,1.4556]
[1732441646335,1.1549,3391.3,3390.4,1.4556]
[1732441646697,0.07201381,3391.2,3390.4,1.4556]
[1732441646897,1.1549,3391.1,3390.4,1.4556]
[1732441647929,1.1549,3391.1,3390.3,0.55]
[1732441648131,1.1549,3391.1,3390.3,0.8434]
[1732441649637,1.1549,3391.1,3390.1,0.2934]
[1732441649941,1.1549,3390.9,3390.7,3.0]
[1732441650238,1.1549,3390.9,3390.1,0.2934]
[1732441650392,1.1549,3390.9,3389.8,0.2934]
[1732441650600,1.22650853,3390.8,3389.8,0.2934]
[1732441650832,1.1549,3390.8,3389.8,0.2934]
[1732441651017,0.07160853,3390.7,3389.8,0.2934]
[1732441651193,0.07160853,3390.7,3390.0,0.2934]
[1732441652132,1.1549,3390.8,3390.0,0.2934]
[1732441652501,0.07160853,3390.7,3390.0,0.2934]
[1732441652940,1.1549,3390.6,3390.0,0.2934]
[1732441653123,1.1549,3390.6,3389.8,0.55]
[1732441656568,1.1549,3390.6,3389.9,0.2934]
[1732441657855,0.07160853,3390.5,3389.9,0.2934]
[1732441661432,1.1294,3390.4,3389.9,0.2934]
[1732441661861,0.07160853,3390.3,3389.9,0.2934]
[1732441665836,1.1208,3390.2,3389.5,0.2934]
[1732441666041,0.07139156,3390.1,3389.7,0.2934]
[1732441667255,1.1208,3390.2,3389.7,0.2934]
[1732441668733,1.1208,3390.2,3389.3,0.2934]
[1732441668970,1.1208,3390.2,3389.5,0.2934]
[1732441669134,1.1208,3390.2,3389.4,0.55]
[1732441669339,1.1208,3390.2,3389.2,0.2934]
[1732441669673,1.1208,3390.2,3388.8,2.95]
[1732441670034,6.0235,3390.8,3388.8,2.95]
[1732441670035,1.1208,3390.0,3388.8,2.95]
[1732441670232,1.1208,3390.0,3388.9,0.2934]
[1732441670571,1.19188935,3389.9,3388.9,0.2934]
[1732441671745,1.19188935,3389.9,3388.9,3.2934]
[1732441672138,1.1208,3389.9,3388.9,3.2934]
[1732441673338,1.1208,3389.9,3388.9,3.0]
[1732441673852,1.1208,3389.9,3389.5,3.0]
[1732441674041,1.1208,3389.9,3388.5,0.8434]
[1732441674678,1.1208,3389.7,3388.5,0.8434]
[1732441675174,1.1208,3389.5,3388.5,0.8434]
[1732441675370,1.1208,3389.5,3388.4,0.2934]
[1732441675675,0.07094463,3389.4,3388.5,0.2934]
[1732441675970,1.19174463,3389.4,3388.5,0.2934]
[1732441676665,1.19174463,3389.4,3389.3,3.0]
[1732441676838,1.1208,3389.4,3389.3,3.0]
[1732441677172,1.19151467,3389.4,3389.3,3.0]
[1732441677574,1.19151467,3389.4,3389.1,3.0]
[1732441677775,1.1208,3389.4,3389.1,3.0]
[1732441678143,0.07058282,3389.3,3388.5,0.8434]
[1732441678440,1.1149,3389.2,3388.5,0.8434]
[1732441678915,0.07058282,3389.1,3388.6,0.63331589]
[1732441679038,0.07058282,3389.1,3388.7,0.55]
[1732441679357,1.1149,3389.2,3388.6,0.55]
[1732441680588,1.1149,3390.1,3388.8,0.55]
[1732441680786,0.06661927,3389.1,3389.0,0.55]
[1732441680957,1.1149,3390.1,3389.0,0.55]
[1732441681288,0.06668678,3390.0,3389.0,0.8434]
[1732441681450,0.06668678,3390.0,3389.4,1.1994]
[1732441681651,0.06668678,3390.0,3389.5,0.55]
[1732441682484,0.06668678,3390.0,3389.7,3.0]
[1732441682683,0.06668678,3390.0,3389.3,0.55]
[1732441682891,0.06668678,3390.0,3389.2,0.2934]
[1732441682892,0.06668678,3390.0,3389.5,0.55]
[1732441683184,1.1353,3390.6,3389.8,0.55]
[1732441684298,1.1353,3390.6,3390.4,3.0]
[1732441684589,1.1353,3390.6,3389.7,0.8434]
[1732441684957,0.06689184,3390.5,3389.7,0.8434]
[1732441685966,0.06689184,3390.5,3390.0,1.1069]
[1732441686278,1.1353,3390.6,3390.4,3.0]
[1732441686603,1.1353,3390.6,3389.7,1.6569]
[1732441687191,1.1353,3390.6,3390.4,3.0]
[1732441687355,1.1353,3390.6,3389.7,1.6569]
[1732441687970,1.1353,3390.6,3389.8,0.02949422]
[1732441688177,6.0235,3391.6,3389.8,0.02949422]
[1732441688400,0.0637593,3390.5,3389.8,0.02949422]
[1732441688697,0.0637593,3390.4,3389.8,0.02949422]
[1732441688893,1.2081,3390.9,3390.0,0.55]
[1732441689053,0.0637593,3390.8,3390.0,0.579492]
[1732441689254,0.0637593,3390.8,3390.2,0.55]
[1732441689487,1.2081,3391.3,3390.2,0.55]
[1732441689795,0.7869193,3391.2,3390.2,0.55]
[1732441689964,0.0637593,3391.2,3390.2,0.55]
[1732441690367,1.2081,3391.3,3390.2,0.55]
[1732441690790,1.2081,3391.3,3390.3,0.02949108]
[1732441691366,1.2081,3391.3,3390.5,0.55]
[1732441691599,1.2081,3391.3,3390.5,0.57948782]
[1732441692099,1.2081,3392.1,3390.5,0.57948782]
[1732441692308,0.06390777,3392.0,3390.5,0.57948782]
[1732441692868,0.06390777,3392.0,3390.7,0.55]
[1732441693308,1.2081,3391.9,3390.7,0.55]
[1732441693507,1.2081,3391.9,3391.3,3.0]
[1732441693690,1.2081,3391.9,3390.7,0.55]
[1732441693868,1.2081,3391.7,3390.7,0.55]
[1732441694470,0.06398849,3391.6,3390.7,0.55]
[1732441694710,1.2081,3391.5,3390.7,0.55]
[1732441695120,1.2081,3391.3,3390.2,1.4003]
[1732441695413,1.2081,3391.3,3389.9,1.1069]
[1732441696116,1.2081,3391.3,3389.9,1.13639281]
[1732441696314,1.2081,3391.3,3389.9,1.42979281]
[1732441696520,1.2081,3391.3,3390.2,0.55]
[1732441696676,1.2081,3391.3,3390.2,0.94002233]
[1732441696877,1.2081,3391.3,3390.2,1.23342233]
[1732441697078,1.2081,3391.3,3390.3,0.39002233]
[1732441697584,1.2081,3391.3,3390.3,0.68342233]
[1732441698117,1.2081,3391.3,3390.4,0.55]
[1732441698697,1.2081,3391.3,3390.2,0.2934]
[1732441698943,1.2081,3391.3,3390.3,0.8434]
[1732441699280,1.2081,3391.3,3390.3,0.2934]
[1732441699496,1.2081,3391.3,3390.4,0.55]
[1732441699900,1.2081,3391.3,3390.4,0.8434]
[1732441700382,1.2081,3391.3,3390.4,2.05308879]
[1732441700583,1.2081,3391.3,3390.6,0.55]
[1732441701092,1.2081,3391.3,3390.8,0.55]
[1732441702171,1.2081,3391.3,3390.7,0.8434]
[1732441702992,1.2081,3391.3,3390.5,0.55]
[1732441703409,1.2081,3391.3,3389.9,1.55412233]
[1732441703781,1.2081,3391.3,3390.0,0.02949202]
[1732441703985,1.2081,3391.3,3390.0,0.2934]
[1732441704897,1.2081,3391.3,3389.8,0.2934]
[1732441706255,1.2081,3391.3,3389.7,3.02949378]
[1732441706256,1.2081,3391.3,3389.9,0.2934]
[1732441706543,1.2081,3391.3,3390.6,3.0]
[1732441706739,0.1,3391.9,3389.9,0.2934]
[1732441706740,1.1749,3391.1,3389.9,0.2934]
[1732441707104,0.06418644,3391.0,3389.5,0.2934]
[1732441707302,1.1749,3390.9,3389.5,0.2934]
[1732441707505,0.06418644,3390.8,3389.7,0.2934]
[1732441707731,1.1749,3390.7,3389.7,0.2934]
[1732441707925,1.1749,3390.7,3389.9,0.2934]
[1732441708136,1.1749,3390.5,3389.9,0.2934]
[1732441708541,0.06418644,3390.4,3389.9,0.2934]
[1732441708723,1.1749,3390.3,3389.9,0.2934]
[1732441709135,1.23908644,3390.2,3389.9,0.2934]
[1732441709302,1.23908644,3390.2,3389.4,0.55]
[1732441709503,1.1749,3390.2,3389.0,0.75433256]
[1732441709821,1.23908644,3390.1,3389.0,0.75433256]
[1732441710326,1.23908644,3390.1,3388.7,0.2934]
[1732441710746,1.1749,3390.1,3388.7,0.2934]
[1732441710928,1.1749,3389.9,3388.6,3.31431023]
[1732441711135,1.1749,3389.9,3388.7,0.3938168]
[1732441711311,0.06418644,3389.8,3388.7,0.78383913]
[1732441711514,1.1749,3389.7,3388.7,0.75433256]
[1732441711934,0.06418644,3389.6,3388.7,0.75433256]
[1732441712211,0.06418644,3389.6,3388.8,1.74360455]
[1732441712513,1.1749,3389.7,3389.0,0.55]
[1732441713120,1.1749,3389.7,3388.6,2.95]
[1732441713324,1.1749,3389.7,3388.0,0.02950232]
[1732441713529,1.1749,3389.7,3388.1,0.39002233]
[1732441713766,1.1749,3389.7,3388.2,0.02950631]
[1732441714563,1.1749,3389.7,3388.2,0.57950631]
[1732441714765,1.1749,3389.7,3388.2,0.55]
[1732441714935,1.1749,3389.7,3388.2,1.33383993]
[1732441716242,1.1749,3389.7,3388.2,1.30433256]
[1732441717225,1.1749,3389.7,3387.9,0.55]
[1732441717424,1.1749,3389.7,3388.0,0.02950736]
[1732441717854,1.1749,3389.7,3389.2,3.0]
[1732441718064,1.1749,3389.7,3388.0,0.02950736]
[1732441718731,1.1103,3389.5,3388.1,0.55]
[1732441719250,1.1103,3389.3,3388.1,0.55]
[1732441719826,0.06350395,3389.2,3388.1,0.55]
[1732441720048,1.1103,3389.2,3388.1,0.55]
[1732441720248,1.1103,3389.0,3388.1,0.55]
[1732441720826,1.1103,3388.8,3388.1,0.55]
[1732441721024,1.1103,3388.8,3388.2,0.2934]
[1732441721272,1.1103,3388.8,3388.1,0.55]
[1732441721273,1.1103,3388.8,3388.3,0.2934]
[1732441721428,0.06350395,3388.7,3388.1,0.55]
[1732441721630,1.1103,3388.6,3388.1,0.55]
[1732441721876,1.1736606,3388.6,3388.1,0.8434]
[1732441724281,1.1103,3388.6,3388.1,0.8434]
[1732441725367,1.1103,3388.6,3387.4,1.2091]
[1732441725568,1.1103,3388.6,3387.1,1.23861295]
[1732441725735,1.1103,3388.6,3387.6,3.0]
[1732441725929,1.1103,3388.6,3387.5,0.02951432]
[1732441726131,1.1103,3388.6,3388.5,3.0]
[1732441726332,1.1103,3388.6,3387.7,0.2934]
[1732441726544,1.1103,3388.6,3387.7,1.07724557]
[1732441726773,1.1103,3388.6,3387.9,0.2934]
[1732441727070,1.1103,3388.6,3388.0,0.8434]
[1732441727368,1.1103,3388.6,3388.2,0.55]
[1732441728434,0.94890528,3388.6,3388.2,0.55]
[1732441729858,6.0235,3389.6,3388.3,0.02951049]
[1732441730036,0.06303476,3388.5,3388.3,0.02951049]
[1732441730233,6.5,3391.4,3388.3,0.02951049]
[1732441730234,6.0235,3390.4,3388.7,0.8434]
[1732441730438,6.0235,3390.6,3388.7,0.87290321]
[1732441730632,6.62585,3390.5,3388.7,0.87290321]
[1732441730938,6.0235,3390.5,3388.7,0.87290321]
[1732441731630,1.103,3390.4,3388.7,0.87290321]
[1732441731834,1.103,3390.4,3388.7,0.8434]
[1732441734975,1.103,3390.4,3388.6,0.55]
[1732441735179,1.103,3390.2,3388.6,0.55]
[1732441735344,1.103,3390.2,3388.6,0.8434]
[1732441737180,1.103,3390.2,3388.9,1.1579]
[1732441737478,1.103,3390.2,3389.0,0.55]
[1732441737650,1.1414,3390.0,3389.0,0.55]
[1732441738050,0.0602752,3389.9,3389.0,0.55]
[1732441740482,0.0602752,3389.9,3389.4,0.55]
[1732441740688,1.1414,3390.0,3389.4,1.7079]
[1732441740974,1.1414,3390.0,3389.8,3.0]
[1732441741179,1.1414,3390.0,3389.9,0.55]
[1732441741747,1.1414,3390.0,3389.5,0.55]
[1732441742048,1.1414,3390.0,3389.2,0.55]
[1732441744283,6.0235,3391.2,3389.4,0.55]
[1732441744468,0.05832237,3389.9,3389.4,0.55]
[1732441744671,1.1878,3390.2,3389.4,0.55]
[1732441744999,0.05832237,3389.8,3389.4,0.55]
[1732441745201,0.05832237,3390.1,3389.4,0.55]
[1732441745507,1.1878,3390.6,3389.8,0.55]
[1732441745711,0.05832237,3390.0,3389.9,2.40961843]
[1732441745896,0.05832237,3390.5,3390.2,0.2934]
[1732441746207,1.1878,3391.0,3390.3,0.55]
[1732441748371,1.1878,3391.0,3390.6,3.0]
[1732441748685,1.1878,3391.0,3390.7,0.55]
[1732441749704,1.1878,3391.7,3390.7,0.55]
[1732441749907,0.0563783,3390.9,3390.7,0.55]
[1732441750105,1.79015,3391.7,3390.7,0.55]
[1732441750319,0.0563783,3390.8,3390.7,0.55]
[1732441750525,1.1878,3391.7,3390.7,0.55]
[1732441750882,0.0563783,3391.6,3390.7,0.55]
[1732441751593,0.0563783,3391.6,3391.2,3.0]
[1732441751927,0.0563783,3391.6,3390.7,0.55]
[1732441752086,1.1878,3391.5,3391.2,3.0]
[1732441752286,1.1878,3391.5,3390.7,0.55]
[1732441752619,0.0563783,3391.4,3390.7,0.55]
[1732441753383,0.0563783,3391.4,3391.2,3.0]
[1732441753587,0.0563783,3391.4,3390.7,0.55]
[1732441754284,1.1878,3391.3,3390.3,1.51101023]
[1732441754484,1.1878,3391.3,3390.3,1.90103256]
[1732441754485,1.24496506,3391.3,3390.3,1.90103256]
[1732441754679,1.24496506,3391.3,3391.2,3.0]
[1732441754883,0.05716506,3391.3,3391.2,3.0]
[1732441755131,1.1878,3391.5,3391.2,3.0]
[1732441755288,0.05714154,3391.3,3391.2,3.0]
[1732441755489,1.1878,3391.5,3391.2,3.0]
[1732441755714,0.05714154,3391.3,3391.2,3.0]
[1732441755914,1.1878,3391.5,3390.7,1.1467]
[1732441756112,0.05714154,3391.3,3391.2,3.0]
[1732441756390,1.1878,3391.5,3390.8,0.55]
[1732441756729,1.1878,3391.5,3391.2,3.0]
[1732441757222,1.1878,3391.5,3390.8,0.55]
[1732441757712,1.1878,3391.5,3391.2,3.0]
[1732441758512,1.1878,3391.5,3390.8,0.55]
[1732441758829,1.1878,3391.5,3391.2,3.0]
[1732441759042,1.1878,3391.5,3391.0,3.0]
[1732441760520,1.1878,3391.5,3390.5,0.55]
[1732441760707,1.1878,3391.5,3391.0,3.0]
[1732441761028,1.1878,3391.5,3390.5,0.55]
[1732441761642,1.1878,3391.5,3390.5,1.30433256]
[1732441761956,1.1878,3391.5,3390.6,0.39002233]
[1732441762623,1.1878,3391.5,3390.7,0.55]
[1732441763249,1.18623,3391.5,3390.7,0.55]
[1732441763760,0.05718857,3391.4,3390.9,0.55]
[1732441764259,0.60235,3392.2,3390.9,3.55]
[1732441764636,0.05718857,3392.1,3391.1,0.55]
[1732441764959,6.0235,3392.7,3391.1,0.55]
[1732441764960,6.0235,3392.7,3391.2,1.1463]
[1732441765164,0.05718857,3392.0,3391.2,1.17578503]
[1732441765327,6.0235,3392.5,3391.3,0.55]
[1732441765653,0.60235,3392.4,3391.3,0.55]
[1732441765861,0.65953857,3392.4,3391.7,3.0]
[1732441766033,0.65953857,3392.4,3391.3,0.55]
[1732441766556,1.1116,3392.3,3391.3,3.8434]
[1732441766864,1.77990386,3392.3,3391.3,0.8434]
[1732441767037,0.05739231,3392.2,3391.3,0.8434]
[1732441768168,1.1116,3392.1,3391.0,0.8434]
[1732441768358,1.1116,3391.9,3391.0,0.8434]
[1732441768867,0.05739231,3391.8,3391.0,0.8434]
[1732441770669,1.1116,3391.7,3391.0,0.8434]
[1732441771176,0.05739231,3391.6,3391.0,0.8434]
[1732441771347,1.1116,3391.7,3391.0,0.8434]
[1732441771544,0.05753075,3391.5,3391.0,0.8434]
[1732441771885,0.05752814,3391.4,3391.0,0.8434]
[1732441772052,1.1116,3391.7,3391.0,0.8434]
[1732441772258,0.05752814,3391.3,3391.0,0.8434]
[1732441772466,1.1116,3391.7,3391.0,0.8434]
[1732441772647,0.05752814,3391.2,3391.0,0.8434]
[1732441772862,1.1116,3391.7,3391.0,0.8434]
[1732441773178,0.05752814,3391.1,3391.0,0.8434]
[1732441773385,1.1116,3391.7,3391.0,0.8434]
[1732441773554,0.05752814,3391.1,3391.0,0.8434]
[1732441773748,1.1116,3391.7,3391.0,0.8434]
[1732441773949,0.05751246,3391.1,3391.0,0.8434]
[1732441774172,1.1116,3391.7,3391.0,0.8434]
[1732441776593,1.1116,3391.7,3390.5,3.02948537]
[1732441776594,1.1116,3391.7,3390.5,0.55]
[1732441776759,1.1116,3391.7,3390.6,0.39002233]
[1732441776946,0.05747328,3391.6,3390.7,0.55]
[1732441777292,1.1116,3391.7,3390.7,0.55]
[1732441777293,1.1116,3391.7,3390.9,0.55]
[1732441778055,1.1116,3391.7,3390.9,0.9695108]
[1732441778276,1.1116,3391.7,3390.9,4.59773256]
[1732441778508,1.1116,3391.7,3390.9,1.59773256]
[1732441778789,1.1116,3391.7,3390.9,4.59773256]
[1732441779486,1.11159983,3391.7,3390.9,4.59773256]
[1732441779685,1.11159983,3391.7,3390.9,0.8434]
[1732441779876,1.11159983,3391.7,3390.6,0.2934]
[1732441780192,1.11159983,3391.7,3390.7,0.02948796]
[1732441780483,1.11159983,3391.7,3390.8,1.4247]
[1732441781185,1.11159983,3391.7,3390.9,0.8434]
[1732441781686,1.11159983,3391.7,3390.9,0.87288526]
[1732441781890,1.11110555,3391.7,3390.9,0.8434]
[1732441782495,0.05745238,3391.6,3390.9,0.8434]
[1732441783198,0.05745238,3391.6,3391.4,3.0]
[1732441783354,0.05745238,3391.6,3390.9,0.8434]
[1732441784191,1.11110555,3391.7,3390.9,0.8434]
[1732441785581,1.11110555,3391.7,3391.0,0.4195069]
[1732441785900,1.1689,3392.5,3391.3,0.55]
[1732441786195,1.1689,3392.4,3391.3,0.55]
[1732441786378,1.22635238,3392.4,3391.3,0.55]
[1732441787293,1.22635238,3392.4,3391.8,0.55]
[1732441789395,1.22635238,3392.4,3391.3,0.55]
[1732441789972,1.22635238,3392.4,3391.7,3.0]
[1732441789973,1.1689,3392.3,3391.7,3.0]
[1732441790268,0.0575908,3392.2,3391.3,0.55]
[1732441790684,1.1689,3392.1,3391.7,3.0]
[1732441790872,1.1689,3392.1,3391.3,0.55]
[1732441791199,1.1689,3392.1,3391.3,0.57948209]
[1732441791404,0.0575908,3392.0,3391.5,0.8434]
[1732441791557,0.0575908,3392.0,3391.7,0.55]
[1732441791766,1.1689,3392.3,3391.7,0.55]
[1732441796179,1.1689,3392.3,3392.2,3.0]
[1732441796484,1.1689,3392.3,3391.7,0.55]
[1732441796889,1.1689,3392.3,3391.6,0.8434]
[1732441801960,1.1689,3392.3,3391.2,0.2934]
[1732441802165,1.1689,3392.3,3391.9,3.0]
[1732441802322,1.1689,3392.3,3391.4,0.2934]
[1732441802635,1.1689,3392.3,3391.5,0.55]
[1732441802831,1.1689,3392.3,3391.4,0.2934]
[1732441803036,1.1689,3392.3,3390.9,3.0]
[1732441803037,1.1689,3392.3,3391.9,3.0]
[1732441803762,1.1689,3392.3,3390.9,0.2934]
[1732441803763,1.16251053,3392.3,3390.9,0.2934]
[1732441803972,1.16251053,3392.3,3391.9,3.0]
[1732441804138,0.05765088,3392.2,3391.9,3.0]
[1732441804340,0.05765088,3392.2,3390.9,0.68342233]
[1732441804558,6.0235,3392.8,3391.9,3.0]
[1732441804743,6.0235,3392.7,3391.2,0.8434]
[1732441804943,6.0235,3392.7,3391.2,0.2934]
[1732441804944,6.0235,3392.6,3391.2,0.2934]
[1732441805144,0.67437359,3392.5,3391.3,0.55]
[1732441805378,0.67437359,3392.5,3391.9,3.0]
[1732441805661,0.05765088,3392.4,3391.4,0.39002233]
[1732441806849,1.1261,3392.3,3391.4,0.39002233]
[1732441807056,0.05761693,3392.2,3391.3,0.8434]
[1732441807334,1.1261,3392.1,3391.3,0.8434]
[1732441807652,1.18369604,3392.0,3391.1,0.8434]
[1732441808545,1.18369604,3392.0,3391.5,3.0]
[1732441808748,1.18369604,3392.0,3391.1,4.59773256]
[1732441808938,1.18369604,3392.0,3391.3,0.55]
[1732441811879,1.18369604,3392.0,3391.2,0.55]
[1732441812185,1.18369604,3392.0,3391.5,3.0]
[1732441812478,1.18369604,3392.0,3391.0,0.8434]
[1732441812886,1.18369604,3392.0,3391.0,1.20771023]
[1732441813034,1.18369604,3392.0,3391.2,3.0]
[1732441813235,1.18369604,3392.0,3391.3,0.55]
[1732441813439,1.18369604,3392.0,3391.3,1.30433256]
[1732441813659,1.1261,3392.0,3391.5,0.55]